bitfinex-derivatives/quotes_SOLF0:USTF0_20251125
["timestamp","ask_amount","ask_price","bid_price","bid_amount"]
[1764029704256,2.93,137.93,137.86,3.1]
[1764029704660,2.93,137.9,137.86,3.1]
[1764029704847,2.98173689,137.91,137.86,3.1]
[1764029706458,2.98173689,137.91,137.84,6.5313]
[1764029706656,2.98173689,137.91,137.84,9.6313]
[1764029707058,2.93,137.89,137.84,3.1]
[1764029707260,2.93,137.87,137.77,3.1]
[1764029707560,0.05070218,137.83,137.77,3.1]
[1764029707755,2.93,137.82,137.78,9.6342]
[1764029707966,0.05327757,137.81,137.78,9.6342]
[1764029708364,0.05327757,137.81,137.8,3.1]
[1764029708667,24.88,137.9,137.8,3.1]
[1764029708668,2.93,137.91,137.84,3.1]
[1764029709562,0.04737923,137.89,137.87,3.1]
[1764029709761,0.05166333,137.89,137.87,3.14586878]
[1764029710968,0.05166333,137.89,137.87,9.67576878]
[1764029711174,0.05166333,137.89,137.88,3.1]
[1764029711569,0.05166333,137.89,137.87,0.04586878]
[1764029711770,0.05166333,137.89,137.87,3.14586878]
[1764029712170,0.05166333,137.89,137.87,9.67576878]
[1764029712371,2.93,137.95,137.88,3.1]
[1764029713376,0.04921658,137.93,137.9,3.14819375]
[1764029713567,2.97921658,137.93,137.9,0.04819375]
[1764029713762,0.04921658,137.93,137.9,3.14819375]
[1764029714767,2.97921658,137.93,137.9,3.14819375]
[1764029715070,2.97921658,137.93,137.9,0.04819375]
[1764029715677,2.97921658,137.93,137.9,3.14819375]
[1764029716770,0.04921658,137.93,137.9,3.14819375]
[1764029717276,3.19921658,137.93,137.9,3.14819375]
[1764029718273,3.19921658,137.93,137.9,0.04819375]
[1764029718481,5.53033709,137.92,137.9,3.06819375]
[1764029718670,3.19921658,137.93,137.9,3.06819375]
[1764029719370,5.51877037,137.92,137.9,3.06819375]
[1764029719678,3.19921658,137.93,137.9,3.06819375]
[1764029719972,5.50016256,137.92,137.9,3.06819375]
[1764029720176,3.19921658,137.93,137.9,3.06819375]
[1764029720374,0.04921658,137.93,137.9,3.06819375]
[1764029721474,0.04921658,137.93,137.92,3.02]
[1764029727076,5.54943733,137.93,137.91,3.02]
[1764029727280,0.04921658,137.93,137.91,3.02]
[1764029729076,0.04921658,137.93,137.92,6.5278]
[1764029729280,0.04921658,137.93,137.91,3.02]
[1764029730174,5.50557457,137.92,137.9,3.06819375]
[1764029730374,3.19921658,137.93,137.9,3.06819375]
[1764029730579,5.50681982,137.92,137.9,3.06819375]
[1764029730782,3.19921658,137.93,137.9,3.06819375]
[1764029731283,5.50961624,137.92,137.9,3.06819375]
[1764029731587,3.19921658,137.93,137.9,3.06819375]
[1764029731788,5.51087298,137.92,137.9,3.06819375]
[1764029731977,3.19921658,137.93,137.9,3.06819375]
[1764029732279,5.51108275,137.92,137.9,3.06819375]
[1764029732482,3.19921658,137.93,137.9,3.06819375]
[1764029732683,5.51352599,137.92,137.9,3.06819375]
[1764029732885,3.19921658,137.93,137.9,3.06819375]
[1764029733081,5.51352599,137.92,137.9,3.06819375]
[1764029733285,0.04921658,137.93,137.9,3.06819375]
[1764029735483,0.04921658,137.93,137.92,3.02]
[1764029738191,9.6742,138.0,137.94,3.02]
[1764029738393,13.99745351,137.99,137.94,3.02]
[1764029738580,5.52251389,137.98,137.94,3.02]
[1764029738784,3.15,137.96,137.93,3.02]
[1764029739180,3.20107774,137.96,137.93,0.04913681]
[1764029739692,8.67297333,137.95,137.93,0.04913681]
[1764029739892,3.15,137.95,137.93,0.04913681]
[1764029740493,0.05107774,137.96,137.94,3.02]
[1764029741080,3.20107774,137.96,137.93,3.06913681]
[1764029741292,5.52326206,137.95,137.93,3.06913681]
[1764029741486,3.20107774,137.96,137.93,3.06913681]
[1764029741692,5.52443872,137.95,137.93,3.06913681]
[1764029741895,3.20107774,137.96,137.93,3.06913681]
[1764029742094,5.52443953,137.95,137.93,3.06913681]
[1764029742295,3.20107774,137.96,137.93,3.06913681]
[1764029742487,5.52538335,137.95,137.94,3.02]
[1764029743094,5.52538335,137.95,137.93,9.59633681]
[1764029743396,3.20107774,137.96,137.93,9.59633681]
[1764029743597,5.52654682,137.95,137.93,9.59633681]
[1764029743799,3.20107774,137.96,137.93,9.59633681]
[1764029743989,5.52654682,137.95,137.93,9.59633681]
[1764029744189,3.20107774,137.96,137.93,9.59633681]
[1764029744389,5.52745566,137.95,137.93,9.59633681]
[1764029744597,3.20107774,137.96,137.93,9.59633681]
[1764029744796,5.52781473,137.95,137.93,9.59633681]
[1764029744995,3.20107774,137.96,137.94,6.5266]
[1764029745193,5.52780951,137.95,137.93,3.06913681]
[1764029745397,3.20107774,137.96,137.93,3.06913681]
[1764029745600,8.67929929,137.95,137.93,0.04913681]
[1764029745793,3.20107774,137.96,137.93,3.06913681]
[1764029745995,5.52921537,137.95,137.94,3.02]
[1764029746602,5.52921537,137.95,137.93,9.59633681]
[1764029746803,3.14107774,137.96,137.93,9.59633681]
[1764029747101,5.52957437,137.95,137.93,9.59633681]
[1764029747305,3.14107774,137.96,137.93,9.59633681]
[1764029747504,5.52964464,137.95,137.93,3.06913681]
[1764029747704,3.14107774,137.96,137.93,3.06913681]
[1764029747906,3.09,137.94,137.93,0.04913681]
[1764029748097,8.61945601,137.94,137.93,0.04913681]
[1764029748798,5.52945601,137.94,137.93,0.04913681]
[1764029749000,5.52945601,137.94,137.93,2.93913681]
[1764029750406,3.14107774,137.96,137.93,2.93913681]
[1764029750606,5.54176402,137.95,137.93,2.93913681]
[1764029750908,3.14107774,137.96,137.93,2.93913681]
[1764029751206,3.09,137.94,137.93,0.04913681]
[1764029751407,8.63176402,137.94,137.93,0.04913681]
[1764029751910,5.54176402,137.94,137.93,2.93913681]
[1764029752399,0.05107774,137.96,137.94,9.4168]
[1764029752600,5.54368422,137.95,137.94,9.4168]
[1764029754408,5.54368422,137.95,137.94,2.89]
[1764029755213,3.12,137.94,137.93,6.57623681]
[1764029755509,5.54368422,137.94,137.93,6.57623681]
[1764029755701,8.66368422,137.94,137.93,6.57623681]
[1764029755900,5.54368422,137.94,137.93,6.57623681]
[1764029756308,3.12,137.93,137.89,9.4788]
[1764029756507,8.66368422,137.92,137.89,9.4788]
[1764029756701,5.54368422,137.91,137.89,9.4788]
[1764029756902,5.54368422,137.9,137.89,9.4788]
[1764029757998,5.54368422,137.9,137.88,0.05494142]
[1764029758200,8.66368422,137.89,137.88,0.05494142]
[1764029758402,10.88613942,137.89,137.88,0.05494142]
[1764029758706,0.04968048,137.91,137.88,5.59455172]
[1764029758899,0.04968048,137.91,137.89,2.95]
[1764029759303,0.04968048,137.91,137.9,5.5396103]
[1764029761217,6.61096898,137.98,137.92,2.95]
[1764029761415,8.46466024,137.97,137.92,2.95]
[1764029761617,5.34466024,137.96,137.93,2.95]
[1764029761809,5.34466024,137.95,137.93,2.95]
[1764029762008,3.12,137.97,137.93,9.4771]
[1764029762212,5.39345465,137.96,137.94,0.05111084]
[1764029762413,5.34511791,137.95,137.94,0.05111084]
[1764029765517,8.46511791,137.95,137.94,0.05111084]
[1764029765715,3.12,137.94,137.91,6.5279]
[1764029766631,3.12,137.94,137.91,6.57436053]
[1764029766919,3.12,137.94,137.91,9.52436053]
[1764029768825,5.3457227,137.93,137.91,0.04646053]
[1764029769019,8.46530448,137.92,137.91,0.04646053]
[1764029770725,10.90399957,137.92,137.91,0.04646053]
[1764029771222,14.02399957,137.92,137.91,0.04646053]
[1764029773931,10.90399957,137.92,137.91,0.04646053]
[1764029774124,10.90399957,137.92,137.91,2.99646053]
[1764029774326,5.55869509,137.92,137.91,2.99646053]
[1764029776623,5.55869509,137.92,137.91,0.04646053]
[1764029777426,8.73869509,137.92,137.91,0.04646053]
[1764029777628,14.08646862,137.92,137.91,0.04646053]
[1764029778126,14.08626927,137.92,137.91,0.04646053]
[1764029778625,8.73869509,137.92,137.91,0.04646053]
[1764029779034,5.55869509,137.92,137.91,3.21646053]
[1764029779227,5.55869509,137.92,137.91,0.04646053]
[1764029781532,5.55869509,137.92,137.91,3.21646053]
[1764029781932,5.55869509,137.92,137.91,0.04646053]
[1764029781933,8.73869509,137.92,137.91,0.04646053]
[1764029782234,14.08557323,137.92,137.91,0.04646053]
[1764029785335,3.18,137.91,137.85,147.5919]
[1764029785635,3.18,137.89,137.85,104.7619]
[1764029785835,8.73869509,137.88,137.85,104.7619]
[1764029786038,3.18,137.88,137.86,3.17]
[1764029786438,0.0510221,137.88,137.86,3.22466025]
[1764029787042,0.0510221,137.88,137.87,6.5299]
[1764029787233,3.18,137.87,137.86,0.05466025]
[1764029787435,3.18,137.87,137.8,104.7983]
[1764029787436,3.18,137.86,137.8,104.7983]
[1764029787644,8.75211453,137.85,137.82,6.5321]
[1764029787840,8.75211453,137.84,137.82,6.5321]
[1764029788040,8.75211453,137.83,137.82,6.5321]
[1764029788442,8.74530724,137.83,137.8,9.7032]
[1764029788639,3.18,137.83,137.8,6.5332]
[1764029788940,3.18,137.83,137.78,6.5342]
[1764029789244,3.18,137.81,137.78,6.5342]
[1764029789445,3.23318319,137.81,137.78,6.5342]
[1764029789839,3.23318319,137.81,137.77,3.17]
[1764029790235,0.05318319,137.81,137.77,3.17]
[1764029790435,0.05318319,137.81,137.78,5.7596103]
[1764029790639,0.05318319,137.81,137.79,3.17]
[1764029790839,0.05318319,137.81,137.79,9.7037]
[1764029791238,3.23318319,137.81,137.78,3.17]
[1764029791540,3.23318319,137.81,137.77,9.7045]
[1764029792243,3.23318319,137.81,137.78,6.5342]
[1764029792444,3.23318319,137.81,137.78,9.7042]
[1764029792644,3.23318319,137.81,137.78,6.5342]
[1764029793144,3.23318319,137.81,137.76,12.2947103]
[1764029794050,3.23318319,137.81,137.77,6.5347]
[1764029794251,3.23318319,137.81,137.77,9.7047]
[1764029794441,3.23318319,137.81,137.74,5.7596103]
[1764029794641,3.18,137.79,137.74,3.17]
[1764029794856,3.18,137.77,137.74,3.17]
[1764029795055,3.18,137.77,137.73,9.7065]
[1764029795251,3.18,137.77,137.74,3.17]
[1764029795451,3.18,137.77,137.7,2.5896103]
[1764029795652,3.23562258,137.75,137.71,3.17]
[1764029795843,3.23562258,137.75,137.72,2.5896103]
[1764029796047,0.05562258,137.75,137.72,5.7596103]
[1764029796252,0.05562258,137.75,137.72,9.7071]
[1764029796457,0.05562258,137.75,137.72,12.2967103]
[1764029797556,3.23562258,137.75,137.72,12.2967103]
[1764029797948,0.05562258,137.75,137.74,3.17]
[1764029798143,0.05562258,137.75,137.73,9.7065]
[1764029799152,3.23562258,137.75,137.71,3.17]
[1764029799353,0.05562258,137.75,137.72,3.17]
[1764029799853,0.05562258,137.75,137.73,9.7065]
[1764029800058,0.05562258,137.75,137.74,3.17]
[1764029800847,3.18,137.78,137.75,9.7057]
[1764029801253,3.18,137.78,137.75,6.5357]
[1764029801951,3.23326487,137.78,137.76,6.5351]
[1764029802148,0.05326487,137.78,137.76,9.7051]
[1764029802355,0.05326487,137.78,137.77,3.17]
[1764029802744,0.05326487,137.78,137.77,5.7596103]
[1764029802950,3.18,137.84,137.81,9.7029]
[1764029803652,3.18,137.87,137.82,9.7023]
[1764029803960,0.04979449,137.86,137.83,3.2251018]
[1764029804159,0.04979449,137.86,137.84,9.7013]
[1764029805061,0.04979449,137.86,137.85,3.17]
[1764029807860,0.04979449,137.86,137.85,5.7596103]
[1764029808254,0.04979449,137.86,137.85,3.17]
[1764029808456,0.04979449,137.86,137.85,5.7596103]
[1764029813267,0.04979449,137.86,137.85,3.17]
[1764029820663,8.36912183,137.94,137.88,3.18]
[1764029820858,3.08,137.92,137.82,104.7944]
[1764029821071,3.08,137.89,137.82,3.18]
[1764029821267,3.08,137.89,137.85,3.18]
[1764029821761,0.04921979,137.88,137.86,3.23207179]
[1764029822562,3.12921979,137.88,137.86,6.58247179]
[1764029822763,3.12921979,137.88,137.86,0.05207179]
[1764029825269,3.12921979,137.88,137.86,6.58257179]
[1764029825569,3.12921979,137.88,137.86,0.05207179]
[1764029826170,3.12921979,137.88,137.86,6.58257179]
[1764029826472,0.04921979,137.88,137.87,3.18]
[1764029829779,0.04921979,137.88,137.86,6.58257179]
[1764029830071,0.04921979,137.88,137.87,3.18]
[1764029830662,0.04921979,137.88,137.86,6.58257179]
[1764029830663,3.12921979,137.88,137.86,0.05207179]
[1764029831963,3.08,137.86,137.78,104.8253]
[1764029832168,3.08,137.86,137.79,3.18]
[1764029833073,3.13108562,137.84,137.81,6.57939045]
[1764029833376,3.13108562,137.84,137.81,9.75939045]
[1764029834880,0.05108562,137.84,137.83,3.18]
[1764029835568,0.05108562,137.84,137.82,9.7123]
[1764029836671,3.03108562,137.84,137.82,6.5323]
[1764029837676,3.03108562,137.84,137.81,0.04659045]
[1764029839375,0.05108562,137.84,137.82,2.95]
[1764029840076,0.05108562,137.84,137.82,9.4823]
[1764029840280,3.03108562,137.84,137.81,0.04659045]
[1764029840968,3.03108562,137.84,137.81,9.52949045]
[1764029842479,3.03108562,137.84,137.81,0.04659045]
[1764029843275,5.57906288,137.83,137.81,0.04659045]
[1764029843482,3.03108562,137.84,137.81,0.04659045]
[1764029843682,5.57906118,137.83,137.81,0.04659045]
[1764029843878,0.05108562,137.84,137.82,2.95]
[1764029845084,0.05108562,137.84,137.83,2.95]
[1764029845286,5.58798595,137.84,137.83,2.95]
[1764029845584,5.58841964,137.89,137.85,2.95]
[1764029845791,5.58841964,137.88,137.85,2.95]
[1764029846083,2.98,137.9,137.85,2.95]
[1764029846384,5.63661689,137.89,137.87,2.95]
[1764029846590,5.58872794,137.88,137.87,2.95]
[1764029846882,0.04788895,137.89,137.88,2.95]
[1764029847083,5.64127318,137.89,137.88,2.95]
[1764029847787,5.64127318,137.89,137.87,6.53]
[1764029847983,5.59338423,137.88,137.87,9.48]
[1764029852083,5.59338423,137.88,137.87,2.95]
[1764029852283,0.04788895,137.89,137.87,2.95]
[1764029852890,3.02788895,137.89,137.87,2.95]
[1764029853091,2.98,137.87,137.86,0.04695958]
[1764029853291,8.57087938,137.87,137.86,0.04695958]
[1764029854586,13.8941638,137.87,137.86,0.04695958]
[1764029859295,10.9141638,137.87,137.86,0.04695958]
[1764029859495,5.59087938,137.87,137.86,0.04695958]
[1764029862090,5.59087938,137.87,137.86,2.99695958]
[1764029864594,3.02788895,137.89,137.86,9.52715958]
[1764029864898,5.55703041,137.88,137.86,9.52715958]
[1764029865196,3.02788895,137.89,137.86,9.52715958]
[1764029865403,0.04788895,137.89,137.88,2.95]
[1764029865593,5.60545274,137.89,137.88,2.95]
[1764029865788,0.04788895,137.89,137.88,2.95]
[1764029866185,9.66777069,137.96,137.9,2.95]
[1764029866391,2.98,137.94,137.9,2.95]
[1764029866590,5.55729021,137.93,137.9,2.95]
[1764029866796,5.55729021,137.92,137.91,6.5279]
[1764029867098,5.55729021,137.92,137.91,9.4379]
[1764029868300,0.0504711,137.93,137.92,2.91]
[1764029872911,5.52892574,137.96,137.92,2.91]
[1764029873099,3.12,137.99,137.96,2.91]
[1764029873292,5.52921221,137.98,137.96,2.91]
[1764029873492,3.12,137.99,137.96,2.91]
[1764029874001,3.17232475,137.99,137.96,0.05469742]
[1764029874204,3.12,137.98,137.96,0.05469742]
[1764029876005,3.05232475,137.99,137.96,9.58039742]
[1764029876202,3.05232475,137.99,137.96,3.05469742]
[1764029879200,3.0,137.98,137.96,0.05469742]
[1764029879501,5.5890423,137.97,137.96,0.05469742]
[1764029879703,11.09924668,137.97,137.96,0.05469742]
[1764029880301,3.0,137.96,137.91,3.0]
[1764029880509,3.0,137.92,137.88,3.0]
[1764029880705,5.5890423,137.91,137.85,3.0]
[1764029881109,3.0,137.9,137.85,3.0]
[1764029881514,3.05456049,137.89,137.86,3.04718044]
[1764029882012,0.05456049,137.89,137.86,3.04718044]
[1764029882209,5.64360279,137.89,137.86,0.04718044]
[1764029882412,3.0,137.88,137.86,0.04718044]
[1764029883510,0.05456049,137.89,137.86,3.04718044]
[1764029883710,3.05456049,137.89,137.86,3.04718044]
[1764029885004,3.05456049,137.89,137.86,9.57758044]
[1764029886104,0.05456049,137.89,137.87,3.0]
[1764029886310,0.05456049,137.89,137.87,9.5299]
[1764029890715,3.05456049,137.89,137.87,6.5299]
[1764029890913,3.05456049,137.89,137.86,0.04718044]
[1764029891810,0.05456049,137.89,137.87,6.53]
[1764029892013,0.05456049,137.89,137.87,9.53]
[1764029892317,3.05456049,137.89,137.87,6.53]
[1764029892823,3.05456049,137.89,137.86,0.04718044]
[1764029893012,3.0,137.88,137.86,0.04718044]
[1764029894402,3.05456049,137.89,137.86,3.04718044]
[1764029895016,3.05456049,137.89,137.86,9.57758044]
[1764029895505,0.05456049,137.89,137.86,3.04718044]
[1764029895709,0.05456049,137.89,137.87,9.53]
[1764029896617,0.05456049,137.89,137.88,3.17]
[1764029897617,8.25478062,137.94,137.9,3.17]
[1764029897917,5.52423104,137.93,137.9,3.17]
[1764029898118,5.5245306,137.92,137.9,9.6984]
[1764029898312,5.5245306,137.92,137.9,6.5284]
[1764029898313,2.95,137.92,137.9,6.5284]
[1764029898722,3.0032677,137.92,137.9,6.5829387]
[1764029898922,0.0532677,137.92,137.9,9.7529387]
[1764029900916,3.0032677,137.92,137.9,6.5829387]
[1764029903517,5.51032614,137.91,137.9,6.5829387]
[1764029904020,8.46032614,137.91,137.9,0.0545387]
[1764029904407,2.95,137.9,137.85,3.17]
[1764029904615,2.95,137.88,137.85,3.17]
[1764029905016,2.95,137.88,137.84,3.17]
[1764029905519,3.00352456,137.87,137.85,0.051929]
[1764029905915,3.00352456,137.87,137.85,6.582729]
[1764029907124,0.05352456,137.87,137.85,9.752729]
[1764029907420,3.00352456,137.87,137.85,6.582729]
[1764029908725,0.05352456,137.87,137.85,9.752729]
[1764029911216,0.05352456,137.87,137.85,6.582729]
[1764029911217,3.00352456,137.87,137.85,6.582729]
[1764029913224,3.00352456,137.87,137.85,9.752729]
[1764029913422,8.46056202,137.86,137.85,0.051929]
[1764029913819,5.51056202,137.86,137.85,3.221929]
[1764029914129,0.05352456,137.87,137.85,3.221929]
[1764029914322,3.00352456,137.87,137.85,6.582529]
[1764029914522,5.51448784,137.86,137.85,6.582529]
[1764029915031,8.46448784,137.86,137.85,0.051929]
[1764029915921,2.95,137.85,137.81,6.5325]
[1764029916224,8.4631458,137.84,137.81,6.5325]
[1764029916424,2.95,137.84,137.81,6.5325]
[1764029916727,2.95,137.84,137.81,6.58155983]
[1764029917028,2.95,137.82,137.81,0.04905983]
[1764029919431,0.05370825,137.84,137.81,0.04905983]
[1764029919432,0.05370825,137.84,137.81,3.21905983]
[1764029919726,5.51172183,137.83,137.81,3.21905983]
[1764029919915,0.05370825,137.84,137.81,3.21905983]
[1764029920322,5.51413077,137.83,137.82,9.7024]
[1764029921220,0.05370825,137.84,137.83,3.17]
[1764029922827,5.57157809,137.84,137.82,9.7024]
[1764029923027,0.05370825,137.84,137.82,9.7024]
[1764029924223,0.05370825,137.84,137.83,3.17]
[1764029924423,5.57892796,137.84,137.83,3.17]
[1764029931033,5.57892796,137.84,137.82,3.1]
[1764029931236,5.52521971,137.83,137.82,3.1]
[1764029931635,3.06,137.82,137.81,0.04905983]
[1764029932133,3.11370825,137.84,137.81,0.04905983]
[1764029932333,8.61731587,137.83,137.81,0.04905983]
[1764029932532,5.55731587,137.82,137.81,0.04905983]
[1764029934333,5.55731587,137.82,137.81,3.14905983]
[1764029934534,3.11370825,137.84,137.81,3.14905983]
[1764029934833,5.55547354,137.83,137.81,3.14905983]
[1764029935029,5.55547354,137.82,137.81,3.14905983]
[1764029935230,3.11370825,137.84,137.81,3.14905983]
[1764029935434,5.55526539,137.83,137.81,3.14905983]
[1764029935636,3.11370825,137.84,137.81,3.14905983]
[1764029935826,5.55528127,137.83,137.81,3.14905983]
[1764029936026,3.11370825,137.84,137.81,3.14905983]
[1764029936227,5.55528127,137.83,137.81,3.14905983]
[1764029936535,3.11370825,137.84,137.81,3.14905983]
[1764029936735,5.55499668,137.83,137.81,3.14905983]
[1764029937031,5.55501885,137.82,137.81,3.14905983]
[1764029937236,3.11370825,137.84,137.81,3.14905983]
[1764029937537,5.5551066,137.83,137.81,3.14905983]
[1764029937737,3.11370825,137.84,137.81,3.14905983]
[1764029937926,5.55505702,137.83,137.81,3.14905983]
[1764029938127,3.11370825,137.84,137.81,3.14905983]
[1764029938322,5.55504047,137.83,137.81,3.14905983]
[1764029938531,3.11370825,137.84,137.81,3.14905983]
[1764029938734,5.55503979,137.83,137.81,3.14905983]
[1764029938934,5.55486679,137.82,137.81,3.14905983]
[1764029939336,3.11370825,137.84,137.81,3.14905983]
[1764029939636,5.55473221,137.83,137.81,3.14905983]
[1764029939934,3.11370825,137.84,137.81,3.14905983]
[1764029940137,8.68471148,137.83,137.81,3.14905983]
[1764029940451,3.13,137.83,137.81,9.68185983]
[1764029942532,0.05370825,137.84,137.83,2.94]
[1764029942743,5.60848661,137.84,137.83,2.94]
[1764029943039,8.73848661,137.84,137.82,6.5322]
[1764029943228,3.18370825,137.84,137.82,6.5322]
[1764029943430,0.05370825,137.84,137.83,2.94]
[1764029948438,3.13,137.9,137.87,6.5301]
[1764029948647,3.13,137.88,137.87,6.5301]
[1764029948849,8.69577101,137.88,137.87,6.5301]
[1764029949135,3.13,137.87,137.77,2.94]
[1764029949334,3.13,137.82,137.74,2.94]
[1764029949532,3.13,137.8,137.74,2.94]
[1764029949728,10.89428781,137.81,137.76,2.94]
[1764029949729,10.89428781,137.79,137.76,2.94]
[1764029949934,5.56577101,137.78,137.76,2.94]
[1764029950137,5.56577101,137.77,137.76,2.94]
[1764029950334,5.56577101,137.77,137.75,6.5913674]
[1764029950643,3.17920501,137.78,137.75,9.5313674]
[1764029950941,5.56331421,137.77,137.75,9.5313674]
[1764029951140,3.17920501,137.78,137.75,9.5313674]
[1764029951440,5.56143116,137.77,137.75,9.5313674]
[1764029951631,3.17920501,137.78,137.76,6.5352]
[1764029951832,5.56143285,137.77,137.76,6.5352]
[1764029953440,0.04920501,137.78,137.77,2.94]
[1764029953641,5.60814501,137.78,137.77,2.94]
[1764029954240,3.01679737,137.78,137.77,2.94]
[1764029954436,3.13,137.82,137.75,0.0557674]
[1764029954637,8.44709754,137.81,137.74,2.94]
[1764029954841,3.13,137.81,137.74,2.94]
[1764029955437,3.18234661,137.79,137.76,0.04619722]
[1764029955843,3.18234661,137.79,137.75,2.94]
[1764029955844,8.44383691,137.78,137.75,2.94]
[1764029956037,3.13,137.81,137.75,2.94]
[1764029956237,8.44508154,137.8,137.75,2.94]
[1764029956438,3.13,137.8,137.75,2.94]
[1764029956645,3.13,137.8,137.77,2.94]
[1764029956945,3.18118861,137.8,137.77,2.98653227]
[1764029957146,3.18118861,137.8,137.77,9.52113227]
[1764029957344,0.05118861,137.8,137.78,3.12]
[1764029958042,0.05118861,137.8,137.78,9.6541]
[1764029959246,0.05118861,137.8,137.79,3.12]
[1764029961745,2.99118861,137.8,137.77,3.16653227]
[1764029962849,2.99118861,137.8,137.77,9.70113227]
[1764029963156,0.05118861,137.8,137.78,3.12]
[1764029964147,0.05118861,137.8,137.78,9.6542]
[1764029964949,0.05118861,137.8,137.79,3.12]
[1764029965560,0.05118861,137.8,137.78,6.5342]
[1764029965754,0.05118861,137.8,137.78,9.6542]
[1764029967156,0.05118861,137.8,137.79,3.12]
[1764029986268,5.29838357,137.86,137.8,101.6306]
[1764029986470,10.70991275,137.85,137.82,3.12]
[1764029986776,5.41152918,137.84,137.82,3.12]
[1764029986964,3.13,137.87,137.83,6.532]
[1764029987160,3.13,137.85,137.83,6.532]
[1764029987360,5.41183108,137.84,137.83,6.58127827]
[1764029987673,5.41183108,137.84,137.83,9.60127827]
[1764029987866,5.41183108,137.84,137.83,6.58127827]
[1764029990176,5.41183108,137.84,137.83,9.60127827]
[1764029993786,0.05299225,137.85,137.84,3.02]
[1764029994084,5.44493529,137.85,137.84,3.02]
[1764029994887,5.44493529,137.85,137.83,9.60127827]
[1764029995089,5.39194304,137.84,137.83,9.60127827]
[1764029995986,13.57512739,137.84,137.83,0.04927827]
[1764030002291,2.88,137.83,137.79,6.5336]
[1764030002492,13.57512739,137.82,137.79,9.6236]
[1764030002682,10.69512739,137.81,137.79,9.6236]
[1764030002883,5.39194304,137.8,137.79,9.6236]
[1764030004282,8.27194304,137.8,137.78,0.04861699]
[1764030004488,5.38059438,137.79,137.78,3.13861699]
[1764030006094,5.38059438,137.79,137.78,9.67291699]
[1764030010594,0.05051841,137.81,137.8,9.6234]
[1764030010799,5.43020751,137.81,137.8,9.6234]
[1764030011201,0.05051841,137.81,137.8,9.6234]
[1764030012106,5.42951899,137.81,137.8,9.6234]
[1764030012307,0.05051841,137.81,137.8,9.6234]
[1764030014112,5.42978091,137.81,137.8,9.6234]
[1764030015516,0.05051841,137.81,137.8,9.6234]
[1764030018412,5.4128308,137.81,137.8,9.6234]
[1764030019417,5.4128308,137.81,137.8,6.5334]
[1764030019808,5.4128308,137.81,137.8,9.4234]
[1764030020216,8.4228308,137.81,137.8,6.5334]
[1764030020716,5.4128308,137.81,137.8,6.5334]
[1764030020911,5.4128308,137.81,137.8,9.4234]
[1764030022409,5.4128308,137.81,137.8,6.5334]
[1764030022610,8.4228308,137.81,137.8,6.5334]
[1764030022913,13.73112026,137.81,137.78,9.47281699]
[1764030023115,5.36231239,137.8,137.78,9.47281699]
[1764030023316,3.06051841,137.81,137.79,6.5338]
[1764030023619,5.37602549,137.8,137.79,9.4238]
[1764030027224,0.05051841,137.81,137.8,2.89]
[1764030027417,5.42659152,137.81,137.8,2.89]
[1764030028419,0.05051841,137.81,137.8,2.89]
[1764030035527,5.42701418,137.81,137.8,2.89]
[1764030041535,0.05051841,137.81,137.8,27.77]
[1764030042734,3.01,137.86,137.83,2.89]
[1764030042940,13.64908458,137.85,137.83,2.89]
[1764030043141,10.63908458,137.84,137.82,5.48481587]
[1764030043341,5.32614777,137.83,137.82,12.01731587]
[1764030043839,8.33614777,137.83,137.82,6.5325]
[1764030044142,5.32614777,137.83,137.82,9.4225]
[1764030045142,8.33614777,137.83,137.82,6.5325]
[1764030046141,0.04995333,137.84,137.82,9.12731587]
[1764030046438,3.05995333,137.84,137.82,9.4225]
[1764030046638,3.07,137.87,137.83,2.89]
[1764030046834,8.37871081,137.86,137.83,2.89]
[1764030047035,3.07,137.86,137.83,2.89]
[1764030047435,3.07,137.86,137.84,6.5314]
[1764030047631,3.12264935,137.86,137.84,6.58167971]
[1764030051833,5.29845218,137.85,137.84,6.58167971]
[1764030052038,3.12264935,137.86,137.84,6.58167971]
[1764030052238,5.2986708,137.85,137.84,6.58167971]
[1764030052439,8.3686708,137.85,137.84,6.58167971]
[1764030058140,13.61610737,137.85,137.84,6.58167971]